bitfinex/quotes_BTCUSD_20220207
["timestamp","ask_amount","ask_price","bid_price","bid_amount"]
[1644209097227,0.0467,42846.0,42841.0,0.05]
[1644209097525,0.12350857,42845.0,42841.0,0.05]
[1644209097925,0.07680857,42845.0,42841.0,0.05]
[1644209098525,0.08180857,42845.0,42841.0,0.126]
[1644209099726,0.07680857,42845.0,42841.0,0.05]
[1644209100471,0.08180857,42845.0,42841.0,0.126]
[1644209101075,0.08180857,42845.0,42841.0,0.12669147]
[1644209101876,0.07680857,42845.0,42841.0,0.05069147]
[1644209102076,0.07680857,42845.0,42839.0,0.05]
[1644209102275,0.07680857,42845.0,42841.0,0.00069147]
[1644209102474,0.08180857,42845.0,42841.0,0.07769147]
[1644209103178,0.25636889,42843.0,42841.0,0.07269147]
[1644209103376,0.25636889,42843.0,42841.0,0.07338294]
[1644209103777,0.17680857,42845.0,42841.0,0.00069147]
[1644209104523,0.18180857,42845.0,42836.0,0.108354]
[1644209104724,0.08180857,42845.0,42836.0,0.108354]
[1644209104925,0.24377971,42843.0,42836.0,0.108354]
[1644209105125,0.06695639,42837.0,42836.0,0.108354]
[1644209105525,0.1,42843.0,42836.0,0.108354]
[1644209105728,0.1,42843.0,42840.0,0.05]
[1644209105927,0.1,42849.0,42840.0,0.108349]
[1644209106126,0.29399652,42851.0,42845.0,0.05]
[1644209106527,0.005,42849.0,42845.0,0.05]
[1644209106728,0.07308332,42849.0,42845.0,0.05]
[1644209107128,0.005,42849.0,42845.0,0.05]
[1644209107327,0.005,42849.0,42842.0,0.05]
[1644209107530,0.005,42849.0,42845.0,0.05]
[1644209107771,0.005,42849.0,42840.0,0.058349]
[1644209107972,0.005,42849.0,42840.0,0.108349]
[1644209108172,0.1141,42845.0,42840.0,0.05]
[1644209108774,0.26527791,42841.0,42840.0,0.05]
[1644209108973,0.35168757,42841.0,42840.0,0.05889827]
[1644209109176,0.35168757,42841.0,42840.0,0.06779659]
[1644209109375,0.45168757,42841.0,42840.0,0.06779659]
[1644209109974,0.45168757,42841.0,42840.0,0.01779659]
[1644209110574,0.45868757,42841.0,42840.0,0.01779659]
[1644209110979,0.45868757,42841.0,42840.0,0.01802196]
[1644209111174,0.19340966,42841.0,42840.0,0.01779659]
[1644209111375,0.09340966,42841.0,42840.0,0.01779659]
[1644209111623,0.09340966,42841.0,42840.0,0.01802196]
[1644209111825,0.2141,42845.0,42840.0,0.06779659]
[1644209112026,0.1141,42845.0,42840.0,0.06779659]
[1644209112523,0.1211,42845.0,42840.0,0.06779659]
[1644209113427,0.1211,42845.0,42840.0,0.06802196]
[1644209113628,0.1211,42845.0,42840.0,0.01802196]
[1644209113826,0.1141,42845.0,42840.0,0.01802196]
[1644209114224,0.1141,42845.0,42839.0,0.0006915]
[1644209114425,0.1141,42845.0,42842.0,0.00889827]
[1644209114726,0.07149309,42844.0,42842.0,0.00889827]
[1644209116579,0.08149309,42844.0,42842.0,0.00889827]
[1644209117482,0.32659,42843.0,42842.0,0.00889827]
[1644209117783,0.32659,42843.0,42833.0,0.1223]
[1644209117784,0.8,42840.0,42822.0,0.1224]
[1644209117983,0.0467,42839.0,42822.0,0.1224]
[1644209118183,0.0467,42839.0,42827.0,0.05]
[1644209118184,0.2820469,42834.0,42827.0,0.05]
[1644209118383,0.3287469,42834.0,42823.0,0.058373]
[1644209118583,0.28477733,42833.0,42823.0,0.058373]
[1644209118889,0.28477733,42833.0,42822.0,0.1224]
[1644209118890,0.0467,42832.0,42822.0,0.0079]
[1644209119130,0.2337231,42823.0,42815.0,0.1198]
[1644209119330,0.2337231,42823.0,42812.0,0.116759]
[1644209119331,0.27164298,42821.0,42812.0,0.116759]
[1644209119632,0.29326196,42820.0,42811.0,0.058387]
[1644209119829,0.1,42822.0,42811.0,0.058387]
[1644209120030,0.38107876,42822.0,42811.0,0.058387]
[1644209120229,0.38107876,42822.0,42811.0,0.053387]
[1644209120230,0.37941302,42822.0,42811.0,0.053387]
[1644209120430,0.37840269,42822.0,42811.0,0.053387]
[1644209120630,0.38240269,42822.0,42811.0,0.053387]
[1644209120828,0.28240269,42822.0,42811.0,0.053387]
[1644209121029,0.004,42822.0,42811.0,0.053387]
[1644209121232,0.004,42822.0,42807.0,0.65235989]
[1644209121233,0.004,42822.0,42820.0,0.058378]
[1644209121632,0.004,42822.0,42818.0,0.116756]
[1644209121830,0.1,42825.0,42818.0,0.116756]
[1644209122230,0.1,42825.0,42819.0,0.058376]
[1644209122431,0.2822519,42827.0,42821.0,0.24751488]
[1644209122630,0.007,42825.0,42821.0,0.24751488]
[1644209122876,0.007,42825.0,42819.0,0.00068039]
[1644209123075,0.007,42825.0,42819.0,0.05905639]
[1644209123275,0.08940505,42825.0,42819.0,0.05905639]
[1644209123675,0.08940505,42825.0,42819.0,0.058376]
[1644209123875,0.08240505,42825.0,42820.0,0.00065988]
[1644209124080,0.13240505,42825.0,42820.0,0.00065988]
[1644209124676,0.13940505,42825.0,42820.0,0.00065988]
[1644209124876,0.13940505,42825.0,42818.0,0.19092165]
[1644209125076,0.05,42823.0,42820.0,0.00065987]
[1644209125277,0.08940505,42825.0,42820.0,0.00065987]
[1644209125477,0.05,42822.0,42820.0,0.00065987]
[1644209125676,0.25,42821.0,42818.0,0.16158152]
[1644209125876,0.25,42821.0,42817.0,0.058379]
[1644209126076,0.25,42821.0,42814.0,0.116755]
[1644209126528,0.0818812,42815.0,42814.0,0.116755]
[1644209128625,0.0828812,42815.0,42814.0,0.116755]
[1644209129826,0.0818812,42815.0,42814.0,0.116755]
[1644209130678,0.0828812,42815.0,42814.0,0.116755]
[1644209131881,0.0818812,42815.0,42814.0,0.11663634]
[1644209132478,0.15,42821.0,42814.0,0.11663634]
[1644209132679,0.002,42815.0,42814.0,0.11663634]
[1644209133879,0.07913132,42818.0,42814.0,0.11663634]
[1644209134123,0.07913132,42818.0,42814.0,0.17501534]
[1644209134722,0.08013132,42818.0,42814.0,0.1756763]
[1644209134921,0.08013132,42818.0,42814.0,0.17590088]
[1644209135123,0.08013132,42818.0,42814.0,0.44687975]
[1644209135724,0.08013132,42818.0,42814.0,0.44621879]
[1644209135923,0.07913132,42818.0,42814.0,0.44687975]
[1644209136126,0.07913132,42818.0,42814.0,0.17590088]
[1644209136525,0.07913132,42818.0,42815.0,0.116754]
[1644209136725,0.08013132,42818.0,42815.0,0.116754]
[1644209136928,0.0467,42838.0,42818.0,0.8]
[1644209137131,0.20771986,42861.0,42837.0,0.05]
[1644209137132,0.1141,42845.0,42837.0,0.05]
[1644209137328,0.1141,42845.0,42843.0,0.05]
[1644209137527,0.1141,42845.0,42844.0,0.9685915]
[1644209137787,0.001,42859.0,42848.0,0.05]
[1644209138086,0.001,42859.0,42858.0,0.05]
[1644209138286,0.001,42859.0,42858.0,0.38148735]
[1644209138583,0.001,42859.0,42858.0,0.35448735]
[1644209138882,0.001,42859.0,42858.0,0.45448735]
[1644209139082,0.001,42859.0,42858.0,0.40448735]
[1644209139283,0.001,42859.0,42855.0,0.458217]
[1644209139284,0.24712529,42858.0,42855.0,0.05372965]
[1644209139484,0.24712529,42858.0,42854.0,0.5835]
[1644209139486,0.5306063,42858.0,42856.0,0.0467]
[1644209139688,0.65651831,42857.0,42856.0,0.0467]
[1644209140086,0.32992831,42857.0,42850.0,0.0467]
[1644209140282,0.36890562,42851.0,42850.0,0.0467]
[1644209140685,0.36890562,42851.0,42845.0,0.05]
[1644209140884,0.06757511,42849.0,42845.0,0.05]
[1644209141085,0.36890562,42851.0,42845.0,0.05]
[1644209141927,0.00043826,42850.0,42845.0,0.108342]
[1644209142127,0.07162362,42849.0,42845.0,0.058342]
[1644209142430,0.07162362,42849.0,42845.0,0.108342]
[1644209142626,0.07462362,42849.0,42845.0,0.122342]
[1644209143329,0.07506188,42849.0,42845.0,0.072342]
[1644209143927,0.07206188,42849.0,42845.0,0.058342]
[1644209144126,0.07162362,42849.0,42845.0,0.058342]
[1644209144327,0.07206188,42849.0,42845.0,0.058342]
[1644209144728,0.07506188,42849.0,42845.0,0.071342]
[1644209145375,0.07462362,42849.0,42845.0,0.071342]
[1644209145575,0.07506196,42849.0,42845.0,0.071342]
[1644209145974,0.07206196,42849.0,42845.0,0.058342]
[1644209146576,0.07162362,42849.0,42845.0,0.058342]
[1644209146777,0.07162362,42849.0,42845.0,0.071342]
[1644209146778,0.00243834,42849.0,42845.0,0.071342]
[1644209147776,0.002,42849.0,42845.0,0.071342]
[1644209147978,0.00043834,42849.0,42845.0,0.058342]
[1644209148679,0.00043834,42849.0,42845.0,0.073342]
[1644209148879,0.07943823,42850.0,42845.0,0.073342]
[1644209149121,0.00043833,42849.0,42845.0,0.073342]
[1644209149921,0.00043833,42849.0,42845.0,0.058342]
[1644209150124,0.07943823,42850.0,42845.0,0.058342]
[1644209150320,0.00043833,42849.0,42845.0,0.058342]
[1644209150524,0.00043833,42849.0,42846.0,0.05]
[1644209151322,0.001,42850.0,42846.0,0.05]
[1644209151524,0.00143833,42850.0,42849.0,0.18506726]
[1644209152526,0.001,42850.0,42849.0,0.18506726]
[1644209152776,0.001,42850.0,42849.0,0.20206726]
[1644209153371,0.001,42850.0,42849.0,0.125335]
[1644209153974,0.001,42850.0,42849.0,0.082335]
[1644209154572,0.00043832,42852.0,42849.0,0.065335]
[1644209154774,0.21807952,42862.0,42849.0,0.081335]
[1644209154971,0.07814269,42860.0,42849.0,0.081335]
[1644209155772,0.3637057,42858.0,42849.0,0.081335]
[1644209155973,0.3637057,42858.0,42849.0,0.065335]
[1644209156624,0.3767057,42858.0,42849.0,0.076335]
[1644209156824,0.07341644,42853.0,42849.0,0.076335]
[1644209157227,0.07341644,42853.0,42849.0,0.018]
[1644209157426,0.07341644,42853.0,42849.0,0.01866306]
[1644209157625,0.3767057,42858.0,42849.0,0.01866306]
[1644209158027,0.3767057,42858.0,42849.0,0.00766306]
[1644209158028,0.3637057,42858.0,42849.0,0.00766306]
[1644209158426,0.3637057,42858.0,42849.0,0.007]
[1644209158629,0.3450057,42858.0,42851.0,0.05899903]
[1644209158827,0.3450057,42858.0,42852.0,0.079215]
[1644209159927,0.3170057,42858.0,42853.0,0.00066137]
[1644209160771,0.3380057,42858.0,42853.0,0.00566137]
[1644209160972,0.3380057,42858.0,42853.0,0.005]
[1644209161173,0.3380057,42858.0,42853.0,0.00566137]
[1644209161974,0.3170057,42858.0,42853.0,0.00066137]
[1644209162173,0.3170057,42858.0,42851.0,0.058336]
[1644209162375,0.3170057,42858.0,42853.0,0.00066137]
[1644209162574,0.3637057,42858.0,42853.0,0.00066137]
[1644209162775,0.3787057,42858.0,42853.0,0.00066137]
[1644209163377,0.3787057,42858.0,42851.0,0.008]
[1644209163576,0.3787057,42858.0,42853.0,0.0006616]
[1644209164034,0.3637057,42858.0,42853.0,0.0006616]
[1644209164521,0.08366981,42853.0,42849.0,0.007]
[1644209165124,0.20023185,42852.0,42849.0,0.007]
[1644209166626,0.07219858,42851.0,42849.0,0.011]
[1644209166925,0.021,42852.0,42849.0,0.011]
[1644209167971,0.49541351,42851.0,42849.0,0.007]
[1644209168572,0.08407405,42850.0,42849.0,0.007]
[1644209168772,0.08407405,42850.0,42849.0,0.01]
[1644209168973,0.08407405,42850.0,42849.0,0.005]
[1644209169374,0.30323135,42851.0,42849.0,0.005]
[1644209169574,0.026,42851.0,42849.0,0.005]
[1644209169974,0.0467,42853.0,42849.0,0.002]
[1644209170677,0.27955841,42851.0,42849.0,0.00266194]
[1644209170877,0.35684689,42851.0,42849.0,0.00266194]
[1644209171276,0.07728848,42851.0,42849.0,0.00266194]
[1644209171529,0.0797,42853.0,42849.0,0.00266194]
[1644209171727,0.0797,42853.0,42849.0,0.002]
[1644209171927,0.0467,42853.0,42849.0,0.002]
[1644209172526,0.38548515,42853.0,42849.0,0.002]
[1644209172726,0.41948515,42853.0,42849.0,0.002]
[1644209172927,0.08879742,42851.0,42849.0,0.002]
[1644209173127,0.08879742,42851.0,42849.0,0.00266194]
[1644209174029,0.08879742,42851.0,42849.0,0.002]
[1644209174629,0.11379742,42851.0,42849.0,0.005]
[1644209176573,0.32428257,42853.0,42849.0,0.002]
[1644209176775,0.031,42851.0,42849.0,0.002]
[1644209176972,0.08067536,42850.0,42849.0,0.002]
[1644209177374,0.031,42851.0,42849.0,0.002]
[1644209177978,0.32428257,42853.0,42849.0,0.002]
[1644209178177,0.32659,42851.0,42849.0,0.002]
[1644209178378,0.34652344,42850.0,42849.0,0.0001]
[1644209178578,0.67311344,42850.0,42849.0,0.0001]
[1644209178775,0.77311344,42850.0,42849.0,0.0001]
[1644209179036,0.05836511,42849.0,42838.0,0.18170979]
[1644209179231,0.42329,42848.0,42847.0,0.00066166]
[1644209179427,0.7971699,42848.0,42847.0,0.00066166]
[1644209180026,1.0248667,42848.0,42847.0,0.00066166]
[1644209180327,0.20837802,42839.0,42831.0,0.00022458]
[1644209180528,0.0467,42838.0,42830.0,0.00022458]
[1644209180727,0.0467,42838.0,42827.0,0.00022458]
[1644209180928,0.0467,42838.0,42824.0,0.00022458]
[1644209181326,0.0467,42838.0,42825.0,0.08753238]
[1644209181327,0.08028371,42833.0,42825.0,0.08753238]
[1644209181528,0.08028371,42833.0,42830.0,0.00066187]
[1644209182528,0.08028371,42833.0,42827.0,0.00022458]
[1644209182772,0.09028371,42833.0,42829.0,0.00066187]
[1644209182974,0.01,42833.0,42829.0,0.00066187]
[1644209183776,0.01,42833.0,42824.0,0.00022458]
[1644209183974,0.0467,42834.0,42829.0,0.00066188]
[1644209184674,0.0577,42834.0,42829.0,0.00066188]
[1644209184876,0.011,42834.0,42825.0,0.00022458]
[1644209185076,0.011,42834.0,42829.0,0.00066188]
[1644209185877,0.39696655,42836.0,42829.0,0.00066188]
[1644209186076,0.0467,42841.0,42827.0,0.12399652]
[1644209186379,0.0467,42840.0,42830.0,0.00066187]
[1644209186628,0.0467,42839.0,42830.0,0.00066187]
[1644209186929,0.0467,42838.0,42830.0,0.00066187]
[1644209187128,0.57522484,42839.0,42830.0,0.00066187]
[1644209187327,0.57522484,42839.0,42829.0,0.00022458]
[1644209187328,0.67522484,42839.0,42829.0,0.00022458]
[1644209187628,0.67522484,42839.0,42832.0,0.00066185]
[1644209188628,0.67522484,42839.0,42828.0,0.00022458]
[1644209188829,0.68422484,42839.0,42833.0,0.00066183]
[1644209189831,0.77224038,42839.0,42828.0,0.00022458]
[1644209190029,0.32659,42838.0,42834.0,0.00066182]
[1644209190290,0.15665548,42837.0,42834.0,0.00066182]
[1644209190487,0.37329,42836.0,42834.0,0.00066182]
[1644209190685,0.23738032,42835.0,42834.0,0.00066182]
[1644209190886,0.61067032,42835.0,42828.0,0.00022458]
[1644209191087,0.21287473,42831.0,42822.0,0.00022458]
[1644209191288,0.21287473,42831.0,42821.0,0.535]
[1644209191289,0.0467,42830.0,42821.0,0.535]
[1644209191490,0.38247763,42830.0,42821.0,0.535]
[1644209191693,0.0467,42830.0,42821.0,0.535]
[1644209191887,0.1467,42830.0,42821.0,0.535]
[1644209192290,0.56512726,42824.0,42820.0,0.00022458]
[1644209192490,0.56512726,42824.0,42819.0,0.05]
[1644209192491,0.61182726,42824.0,42819.0,0.05]
[1644209192890,0.61182726,42824.0,42815.0,0.00022458]
[1644209193093,0.61182726,42824.0,42814.0,0.108387]
[1644209193094,0.61182726,42824.0,42812.0,0.00022458]
[1644209193292,0.61182726,42824.0,42811.0,0.00022458]
[1644209193293,0.32659,42823.0,42811.0,0.00022458]
[1644209193492,0.0467,42822.0,42816.0,0.00066143]
[1644209193693,0.32659,42821.0,42816.0,0.00066143]
[1644209194127,0.21585246,42817.0,42816.0,0.00066143]
[1644209194530,0.21585246,42817.0,42810.0,0.00022458]
[1644209194727,0.22385246,42817.0,42814.0,0.00066145]
[1644209195329,0.008,42817.0,42814.0,0.00066145]
[1644209195731,0.008,42817.0,42813.0,0.00022458]
[1644209195930,0.0467,42822.0,42813.0,0.00067108]
[1644209196130,0.0467,42822.0,42813.0,0.00089566]
[1644209196333,0.22001878,42820.0,42813.0,0.00089566]
[1644209196531,0.32659,42819.0,42813.0,0.00089566]
[1644209196934,0.32659,42819.0,42813.0,0.00022458]
[1644209197132,0.32659,42819.0,42814.0,0.00067107]
[1644209198188,0.32659,42819.0,42813.0,0.00022458]
[1644209198388,0.22001878,42820.0,42814.0,0.00067107]
[1644209198590,0.32659,42819.0,42814.0,0.00067107]
[1644209198787,0.26133843,42817.0,42814.0,0.00067107]
[1644209198989,0.32659,42816.0,42814.0,0.00035938]
[1644209199289,0.32659,42816.0,42813.0,0.00022458]
[1644209199290,0.008,42819.0,42815.0,0.05]
[1644209199493,0.008,42819.0,42812.0,0.07008606]
[1644209199688,0.008,42819.0,42813.0,0.00022458]
[1644209199887,0.008,42819.0,42812.0,0.07008606]
[1644209200088,0.0467,42823.0,42812.0,0.07008606]
[1644209200288,0.22002758,42822.0,42812.0,0.07008606]
[1644209200888,0.22702758,42822.0,42812.0,0.11808606]
[1644209201088,0.22702758,42822.0,42812.0,0.17647506]
[1644209201287,0.22702758,42822.0,42812.0,0.23486406]
[1644209201532,0.22702758,42822.0,42813.0,0.058389]
[1644209201728,0.22702758,42822.0,42813.0,0.05861358]
[1644209202325,0.22002758,42822.0,42813.0,0.00022458]
[1644209202525,0.22002758,42822.0,42812.0,0.12061746]
[1644209202726,0.22902758,42822.0,42813.0,0.044]
[1644209202941,0.22902758,42822.0,42813.0,0.04422458]
[1644209203628,0.32659,42821.0,42813.0,0.04422458]
[1644209204028,0.32659,42821.0,42813.0,0.00022458]
[1644209204229,0.22002758,42822.0,42810.0,0.00022458]
[1644209204430,0.22002758,42822.0,42812.0,0.00069004]
[1644209204733,0.20970767,42819.0,42812.0,0.00069004]
[1644209205376,0.23852779,42815.0,42811.0,0.00022458]
[1644209205575,0.23852779,42815.0,42812.0,0.00069003]
[1644209205977,0.33204762,42821.0,42812.0,0.00069003]
[1644209206177,0.35862243,42824.0,42812.0,0.00069003]
[1644209206377,0.1,42821.0,42812.0,0.00069003]
[1644209206577,0.1,42821.0,42811.0,0.00022458]
[1644209206778,0.1,42821.0,42812.0,0.05369004]
[1644209206979,0.22077422,42818.0,42812.0,0.05369004]
[1644209207178,0.51589451,42823.0,42812.0,0.05369004]
[1644209207381,0.108,42823.0,42814.0,0.05]
[1644209207579,0.008,42823.0,42814.0,0.05]
[1644209207979,0.008,42823.0,42813.0,0.00022458]
[1644209208179,0.0467,42824.0,42812.0,0.00091462]
[1644209208778,0.06490402,42815.0,42812.0,0.00069004]
[1644209209051,0.06490402,42815.0,42811.0,0.00022458]
[1644209209243,0.06490402,42815.0,42812.0,0.00069004]
[1644209210144,0.59809974,42816.0,42811.0,0.05]
[1644209210342,0.59809974,42816.0,42811.0,0.05068697]
[1644209210542,0.1975058,42824.0,42811.0,0.05068697]
[1644209210744,0.011,42816.0,42811.0,0.05068697]
[1644209211044,0.011,42816.0,42811.0,0.00068697]
[1644209211442,0.07637287,42814.0,42809.0,0.00022458]
[1644209211642,0.07637287,42814.0,42808.0,0.00242458]
[1644209212244,0.07637287,42814.0,42810.0,0.05]
[1644209212643,0.23590251,42816.0,42810.0,0.05]
[1644209212879,0.009,42814.0,42810.0,0.05]
[1644209214079,0.06994687,42815.0,42810.0,0.05068392]
[1644209214478,0.20115198,42817.0,42810.0,0.05068392]
[1644209214880,0.009,42815.0,42810.0,0.09968392]
[1644209215183,0.009,42815.0,42811.0,0.00068391]
[1644209215380,0.009,42815.0,42811.0,0.00090849]
[1644209215580,0.009,42815.0,42810.0,0.13650049]
[1644209216182,0.02089151,42822.0,42814.0,0.07167957]
[1644209216379,0.57734487,42821.0,42814.0,0.07167957]
[1644209216634,0.21436606,42821.0,42814.0,0.07167957]
[1644209216834,0.31436606,42821.0,42814.0,0.08067957]
[1644209218736,0.31436606,42821.0,42814.0,0.07167957]
[1644209218934,0.31436606,42821.0,42814.0,0.08467957]
[1644209218935,0.32436606,42821.0,42814.0,0.08467957]
[1644209219139,0.22436606,42821.0,42814.0,0.08467957]
[1644209219336,0.22436606,42821.0,42814.0,0.013]
[1644209219744,0.32659,42820.0,42814.0,0.013]
[1644209219938,0.42659,42820.0,42814.0,0.013]
[1644209220139,0.42659,42820.0,42810.0,0.02910849]
[1644209220381,0.21436606,42821.0,42812.0,0.05]
[1644209220576,0.0706382,42820.0,42812.0,0.12279994]
[1644209220776,0.0776382,42820.0,42812.0,0.12279994]
[1644209221577,0.007,42820.0,42812.0,0.12279994]
[1644209222182,0.12089151,42822.0,42812.0,0.05]
[1644209222183,0.27212885,42816.0,42812.0,0.05]
[1644209222381,0.02089151,42817.0,42812.0,0.05]
[1644209222580,0.1,42822.0,42812.0,0.05]
[1644209222780,0.1,42822.0,42812.0,0.083]
[1644209222781,0.008,42816.0,42812.0,0.083]
[1644209223181,0.24489722,42816.0,42812.0,0.083]
[1644209223581,0.08280708,42815.0,42812.0,0.083]
[1644209224130,0.08280708,42815.0,42812.0,0.05]
[1644209224630,0.02089151,42816.0,42812.0,0.07910849]
[1644209224830,0.011,42815.0,42812.0,0.066]
[1644209226729,0.02089151,42816.0,42812.0,0.05]
[1644209226930,0.012,42815.0,42812.0,0.05]
[1644209228180,0.02089151,42816.0,42812.0,0.05]
[1644209228878,0.03189151,42816.0,42812.0,0.05]
[1644209229479,0.36478054,42813.0,42812.0,0.05]
[1644209229681,0.03189151,42816.0,42812.0,0.05]
[1644209229880,0.23521144,42814.0,42812.0,0.05]
[1644209230280,0.02089151,42816.0,42812.0,0.05]
[1644209230981,0.03189151,42816.0,42812.0,0.05]
[1644209232028,0.02089151,42816.0,42812.0,0.05]
[1644209232826,0.03189151,42816.0,42812.0,0.05]
[1644209234030,0.011,42816.0,42812.0,0.05]
[1644209234428,0.03161037,42816.0,42812.0,0.05]
[1644209234628,0.02061037,42816.0,42812.0,0.05]
[1644209234828,0.03161037,42816.0,42812.0,0.05]
[1644209236178,0.02061037,42816.0,42812.0,0.05]
[1644209236578,0.57684568,42819.0,42812.0,0.05]
[1644209236879,0.011,42816.0,42812.0,0.05]
[1644209237077,0.03161037,42816.0,42812.0,0.05]
[1644209238181,0.07655216,42818.0,42812.0,0.05]
[1644209238783,0.02061037,42816.0,42812.0,0.05]
[1644209239228,0.32659,42817.0,42812.0,0.05]
[1644209239427,0.02061037,42816.0,42812.0,0.05]
[1644209240027,0.011,42818.0,42812.0,0.05]
[1644209240229,0.02061037,42816.0,42812.0,0.05]
[1644209240931,0.03161037,42816.0,42812.0,0.05]
[1644209241133,0.011,42816.0,42812.0,0.05]
[1644209241531,0.03161037,42816.0,42812.0,0.05]
[1644209242131,0.02061037,42816.0,42812.0,0.05]
[1644209242979,0.03161037,42816.0,42812.0,0.05]
[1644209243782,0.32659,42815.0,42812.0,0.05]
[1644209243978,0.32659,42815.0,42809.0,0.0002194]
[1644209244181,0.50535638,42810.0,42808.0,0.0013194]
[1644209244379,0.3442381,42809.0,42808.0,0.0011]
[1644209244879,0.0607,42809.0,42808.0,0.0011]
[1644209245079,0.1607,42809.0,42808.0,0.0011]
[1644209245279,0.48729,42809.0,42808.0,0.0011]
[1644209245478,0.7830547,42809.0,42808.0,0.0011]
[1644209245979,0.4564647,42809.0,42808.0,0.0011]
[1644209246179,0.1467,42809.0,42808.0,0.0011]
[1644209246382,0.0467,42809.0,42808.0,0.0011]
[1644209246636,0.37329,42809.0,42808.0,0.0011]
[1644209246835,0.0627,42809.0,42808.0,0.0011]
[1644209248135,0.0467,42809.0,42808.0,0.0011]
[1644209249040,0.0597,42809.0,42808.0,0.0011]
[1644209249235,0.38629,42809.0,42808.0,0.0011]
[1644209250283,0.37329,42809.0,42808.0,0.0011]
[1644209250483,0.50535638,42810.0,42808.0,0.0011]
[1644209250682,0.83194638,42810.0,42808.0,0.0011]
[1644209250886,0.33959,42809.0,42808.0,0.0011]
[1644209251086,0.013,42809.0,42808.0,0.0011]
[1644209252284,0.32659,42811.0,42808.0,0.0011]
[1644209252484,0.32659,42811.0,42808.0,0.0013194]
[1644209253085,0.018,42811.0,42808.0,0.0013194]
[1644209254138,0.02061037,42814.0,42808.0,0.0013194]
[1644209254338,0.02061037,42814.0,42809.0,0.06947647]
[1644209254538,0.02061037,42814.0,42809.0,0.06969587]
[1644209254735,0.02061037,42814.0,42809.0,0.0990855]
[1644209254936,0.02561037,42814.0,42809.0,0.09975763]
[1644209255237,0.005,42814.0,42809.0,0.09975763]
[1644209255839,0.005,42814.0,42809.0,0.0990855]
[1644209256039,0.005,42814.0,42809.0,0.09975763]
[1644209256843,0.02061037,42815.0,42809.0,0.09975763]
[1644209257041,0.012,42814.0,42809.0,0.0990855]
[1644209257241,0.012,42814.0,42809.0,0.14973673]
[1644209258293,0.012,42814.0,42809.0,0.11969587]
[1644209258494,0.012,42814.0,42809.0,0.1203471]
[1644209259094,0.01188035,42814.0,42809.0,0.1203471]
[1644209259497,0.01188035,42814.0,42809.0,0.11969587]
[1644209259696,0.01188035,42814.0,42809.0,0.12029757]
[1644209260098,0.02061037,42816.0,42809.0,0.12029757]
[1644209260598,0.32659,42815.0,42809.0,0.11969587]
[1644209260897,0.32659,42815.0,42809.0,0.12030061]
[1644209261097,0.61839485,42815.0,42809.0,0.12030061]
[1644209261538,0.32659,42815.0,42809.0,0.05082414]
[1644209261932,0.32659,42815.0,42809.0,0.0502194]
[1644209262135,0.32659,42815.0,42809.0,0.05082414]
[1644209262534,0.02061037,42812.0,42809.0,0.05082414]
[1644209263134,0.02061037,42812.0,42809.0,0.0502194]
[1644209264235,0.07092104,42814.0,42809.0,0.0502194]
[1644209264436,0.06731037,42815.0,42809.0,0.0502194]
[1644209264640,0.02061037,42815.0,42809.0,0.0502194]
[1644209265035,0.03461037,42815.0,42809.0,0.0502194]
[1644209265682,0.32659,42814.0,42809.0,0.05082694]
[1644209265881,0.03241663,42815.0,42809.0,0.05060754]
[1644209266081,0.31432131,42814.0,42809.0,0.05082419]
[1644209266281,0.25420354,42818.0,42809.0,0.05082419]
[1644209266282,0.01841663,42816.0,42809.0,0.05082419]
[1644209266682,0.326604,42815.0,42809.0,0.05021665]
[1644209266885,0.01841663,42816.0,42809.0,0.05082419]
[1644209266886,0.03541663,42816.0,42809.0,0.05082419]
[1644209267482,0.12495334,42816.0,42809.0,0.05082419]
[1644209267883,0.12495334,42816.0,42809.0,0.05021665]
[1644209268084,0.326604,42815.0,42809.0,0.05082405]
[1644209268284,0.10795334,42816.0,42809.0,0.05082405]
[1644209268686,0.08953671,42816.0,42809.0,0.05082405]
[1644209269133,0.08953671,42816.0,42809.0,0.05021665]
[1644209269134,0.03141663,42816.0,42809.0,0.05021665]
[1644209269334,0.326604,42815.0,42809.0,0.05082405]
[1644209270234,0.326604,42815.0,42809.0,0.05021665]
[1644209270533,0.326604,42815.0,42809.0,0.05082405]
[1644209271036,0.012,42815.0,42809.0,0.05082405]
[1644209271637,0.012,42815.0,42810.0,0.03158337]
[1644209271837,0.012,42815.0,42814.0,0.013532]
[1644209272235,0.43376789,42828.0,42814.0,0.013532]
[1644209272436,0.326604,42827.0,42820.0,0.03158337]
[1644209272641,0.06920587,42824.0,42820.0,0.03158337]
[1644209273481,0.06920587,42824.0,42817.0,0.03158337]
[1644209273882,0.06920587,42824.0,42814.0,0.03158337]
[1644209274481,0.06920587,42824.0,42819.0,0.03158337]
[1644209274882,0.25567151,42826.0,42820.0,0.05]
[1644209275082,0.018,42824.0,42820.0,0.05]
[1644209276283,0.01841663,42825.0,42820.0,0.05]
[1644209276542,0.326604,42824.0,42820.0,0.05]
[1644209278834,0.59177959,42827.0,42820.0,0.05]
[1644209279033,0.019,42824.0,42820.0,0.05]
[1644209279434,0.01841663,42823.0,42820.0,0.05]
[1644209279634,0.019,42824.0,42816.0,0.0728797]
[1644209279834,0.019,42824.0,42816.0,0.10446307]
[1644209280281,0.019,42824.0,42816.0,0.0728797]
[1644209280682,0.03741663,42824.0,42816.0,0.0728797]
[1644209280886,0.01841663,42824.0,42816.0,0.0728797]
[1644209281082,0.03541663,42824.0,42816.0,0.0728797]
[1644209281284,0.017,42824.0,42816.0,0.0728797]
[1644209281582,0.01841663,42823.0,42816.0,0.0728797]
[1644209281983,0.017,42824.0,42816.0,0.0728797]
[1644209282184,0.01841663,42823.0,42816.0,0.0728797]
[1644209282482,0.40544782,42827.0,42816.0,0.0728797]
[1644209282682,0.31994571,42827.0,42816.0,0.0728797]
[1644209282886,0.326604,42827.0,42821.0,0.03158337]
[1644209283186,0.343604,42827.0,42816.0,0.10446307]
[1644209283382,0.017,42827.0,42816.0,0.10446307]